{"text_format":"3","workbook":"xlsx","n_sheets":5,"sheets":["汇总表","2023年“P”项目","2024年“A”项目","2023年“S”项目","2023年“H”项目"],"not_rendered":{"images":3,"defined_names":5},"read":"whole","date_system":"1900"}

{"sheet":"汇总表","index":0,"n_rows":10,"n_cols":5,"rows_kept":10,"merged":[[0,0,0,4],[7,0,7,4],[8,0,8,4],[9,0,9,4]]}
["汇总表"]
["序号","项目名称","采购控制价\n（元）","班组所报价格\n（元）","备注"]
[1,"2023年“P”项目",{"v":1820020,"d":"1820020.00"}]
[2,"2024年“A”项目",665491.15]
[3,"2023年“S”项目",123089.63]
[4,"2023年“H”项目",106938.16]
[5,"合计："]
["报价单位名称（公章）："]
["法人或委托人姓名及电话："]
["时间："]

{"sheet":"2023年“P”项目","index":1,"n_rows":19,"n_cols":10,"rows_kept":19,"merged":[[0,0,0,9],[1,0,2,0],[1,1,2,1],[1,2,2,2],[1,3,2,3],[1,4,2,4],[1,5,1,8],[1,9,2,9],[17,1,17,2],[18,0,18,9]]}
["2023年“P”项目桩基工程清单及报价表"]
["序号","项目名称","项目特征","计量\r\n单位","工程量","金额（元）",{"$nulls":3},"备注"]
[{"$nulls":5},"全费用\n单价限价","合价","班组所报单价","合价"]
[1,"旋挖钻机钻孔（孔径≤1000mm）","1.地层情况：土石综合考虑，嵌岩深度满足设计要求，地层情况投标人应综合考虑；现场土质变化不作单价调整；\n2.单桩长度、根数：长度结算以收方深度计算；\n3.桩截面：小于等于1000mm；\n4.成孔方法：旋挖钻机成孔；\n5.挖桩土石方：投标人自行踏勘现场综合考虑、废土转运至项目经理部场内指定位置；\n6.综合单价含完成该工作所需的人工，材料（含主材、辅材、周转材料），机械费（含辅助机械的进出场费），措施费（安全文明施工费、季节性施工、临时设施、夜间施工、二次搬运等）、规费等所有相关费用；投标人需配合发包人完成桩基检测（小应变、超声波、静载）、并完善相关资料；\n7.含工完料清、工人安全防护用品、防暑降温等全部内容，并包含因工期计划必须要的窝工、赶工费用。因不合格造成的二次返工费用由分包单位自行承担。\n8.做法：满足设计及相关施工规范要求。","m",{"v":150,"d":"150.00"},{"v":200,"d":"200.00"},{"$f":"F4*E4","v":{"v":30000,"d":"30000.00"}}]
[2,"旋挖钻机钻孔（孔径＞1000mm）","1.地层情况：土石综合考虑，嵌岩深度满足设计要求，地层情况投标人应综合考虑；现场土质变化不作单价调整；\n2.单桩长度、根数：长度结算以收方深度计算；；\n3.桩截面：大于1000mm；\n4.成孔方法：旋挖钻机成孔；\n5.挖桩土石方：投标人自行踏勘现场综合考虑、废土转运至项目经理部场内指定位置；\n6.综合单价含完成该工作所需的人工，材料（含主材、辅材、周转材料），机械费（含辅助机械的进出场费），措施费（安全文明施工费、季节性施工、临时设施、夜间施工、二次搬运等）、规费等所有相关费用；投标人需配合发包人完成桩基检测（小应变、超声波、静载）、并完善相关资料；\n7.含工完料清、工人安全防护用品、防暑降温等全部内容，并包含因工期计划必须要的窝工、赶工费用。因不合格造成的二次返工费用由分包单位自行承担。\n8.做法：满足设计及相关施工规范要求。","m3",{"v":3120,"d":"3120.00"},{"v":220,"d":"220.00"},{"$f":"E5*F5","v":{"v":686400,"d":"686400.00"}}]
[3,"成孔灌注桩商品混凝土C30","1.混凝土强度等级：C30商品砼，材料甲供\n2.砼现场泵送采用的机械种类及方式：投标人自行确定，泵送费用和泵送运距已综合考虑在单价中；\n4.混凝土计算规格：按有效桩长乘以桩径按体积计算。投标人应合理控制成控深度，超灌应满足设计及规范要求，超挖及超灌部分混凝土费用由投标人承担，结算时根据收方资料计算扣除；\n5.综合单价含完成该工作所需的人工，材料（辅材、周转材料），机械费（辅助机械的进出场费），措施费（安全文明施工费、季节性施工、临时设施、夜间施工、二次搬运等）、规费等所有相关费用；投标人需配合发包人完成桩基检测（小应变、超声波、静载）、并完善相关资料；\n6.做法：满足设计及现行施工技术、质量验收规范要求","m3",{"v":2500,"d":"2500.00"},{"v":65,"d":"65.00"},{"v":162500,"d":"162500.00"},null,null,"砼甲供"]
[4,"成孔灌注桩 商品水下混凝土C30","1.混凝土强度等级：C30水下商品砼，材料甲供\n2.砼现场泵送采用的机械种类及方式：投标人自行确定，泵送费用和泵送运距已综合考虑在单价中；\n4.混凝土计算规格：按有效桩长乘以桩径按体积计算。投标人应合理控制成控深度，超灌应满足设计及规范要求，超挖及超灌部分混凝土费用由投标人承担，结算时根据收方资料计算扣除；\n5.综合单价含完成该工作所需的人工，材料（辅材、周转材料），机械费（辅助机械的进出场费），措施费（安全文明施工费、季节性施工、临时设施、夜间施工、二次搬运等）、规费等所有相关费用；投标人需配合发包人完成桩基检测（小应变、超声波、静载）、并完善相关资料；\n6.做法：满足设计及现行施工技术、质量验收规范要求","m3",{"v":700,"d":"700.00"},{"v":65,"d":"65.00"},{"v":45500,"d":"45500.00"},null,null,"砼甲供"]
[5,"成孔灌注桩 C35商品混凝土","1.混凝土强度等级：C35商品砼，材料甲供\n2.砼现场泵送采用的机械种类及方式：投标人自行确定，泵送费用和泵送运距已综合考虑在单价中；\n4.混凝土计算规格：按有效桩长乘以桩径按体积计算。投标人应合理控制成控深度，超灌应满足设计及规范要求，超挖及超灌部分混凝土费用由投标人承担，结算时根据收方资料计算扣除；\n5.综合单价含完成该工作所需的人工，材料（辅材、周转材料），机械费（辅助机械的进出场费），措施费（安全文明施工费、季节性施工、临时设施、夜间施工、二次搬运等）、规费等所有相关费用；投标人需配合发包人完成桩基检测（小应变、超声波、静载）、并完善相关资料；\n6.做法：满足设计及现行施工技术、质量验收规范要求","m3",{"v":20,"d":"20.00"},{"v":65,"d":"65.00"},{"v":1300,"d":"1300.00"},null,null,"砼甲供"]
[6,"成孔灌注桩 C35水下商品混凝土","1.混凝土强度等级：C35水下商品砼，材料甲供\n2.砼现场泵送采用的机械种类及方式：投标人自行确定，泵送费用和泵送运距已综合考虑在单价中；\n4.混凝土计算规格：按有效桩长乘以桩径按体积计算。投标人应合理控制成控深度，超灌应满足设计及规范要求，超挖及超灌部分混凝土费用由投标人承担，结算时根据收方资料计算扣除；\n5.综合单价含完成该工作所需的人工，材料（辅材、周转材料），机械费（辅助机械的进出场费），措施费（安全文明施工费、季节性施工、临时设施、夜间施工、二次搬运等）、规费等所有相关费用；投标人需配合发包人完成桩基检测（小应变、超声波、静载）、并完善相关资料；\n6.做法：满足设计及现行施工技术、质量验收规范要求","m3",{"v":20,"d":"20.00"},{"v":65,"d":"65.00"},{"v":1300,"d":"1300.00"},null,null,"砼甲供"]
[7,"截（凿）桩头\n（桩径≤φ1000mm）","1.截（凿）桩头截面、高度、强度等级：满足规范，投标人综合考虑 ，\n2.桩头有无钢筋：有\n3.凿除方式：投标人综合考虑\n4.包含截桩头及检测土石方开挖（土石综合考虑），桩头钢筋梳理整形，外弃土转运至项目经理部指定位置，转运距离1km范围内；\n5.做法：满足设计及现行施工技术、质量验收规范要求","个",{"v":20,"d":"20.00"},{"v":240,"d":"240.00"},{"v":4800,"d":"4800.00"}]
[8,"截（凿）桩头\n（桩径＞φ1000mm）","1.截（凿）桩头截面、高度、强度等级：满足规范，投标人综合考虑 ，\n2.桩头有无钢筋：有\n3.凿除方式：投标人综合考虑\n4.包含截桩头及检测土石方开挖（土石综合考虑），桩头钢筋梳理整形，外弃土转运至项目经理部指定位置，转运距离1km范围内；\n5.做法：满足设计及现行施工技术、质量验收规范要求","个",{"v":85,"d":"85.00"},{"v":300,"d":"300.00"},{"v":25500,"d":"25500.00"}]
[9,"声测管","1.材质、规格型号：材质为钢管，规格综合考虑\n2.包含声测管安装及检测后灌浆，压浆做法满足设计及相关规范要求\n3.做法：满足设计及现行施工技术、质量验收规范要求\n4.计算规则：该子项计算规则以长度计算","m",{"v":9810,"d":"9810.00"},{"v":12,"d":"12.00"},{"v":117720,"d":"117720.00"}]
[10,"钢护筒","1.地层情况：综合  \n2.护筒类型、长度：钢护筒，规格、长度、厚度等综合\n3.埋设方式：由投标人自行考虑\n4.做法：满足设计及现行施工技术、质量验收规范要求\n4.计算规则：按实际使用长度计算（孔口护筒已包含在钻孔报价内，不再计量）","m",{"v":1000,"d":"1000.00"},{"v":160,"d":"160.00"},{"v":160000,"d":"160000.00"}]
[11,"现浇构件钢筋HPB300直径 φ10以内 制作、安装","1.钢筋种类、规格：钢筋HPB300直径 φ10以内 ,钢筋甲供\n2.钢筋连接方式：各种连接方式投标人综合考虑在报价中\n3.弧形构件钢筋以及桩钢筋笼的吊装费用，由投标人综合考虑，进入综合单价中\n4.投标人综合考虑埋设的方式，以及钢筋笼吊装等费用均包括在所报综合单价中不再另行计取；\n5.钢筋的复检、送检所需的材料费由投标人自行考虑在投标报价中不再另行计取；\n6.包含完成该工作所需的机械费、机械进出场费、材料场内外运输、二次或多次转运费均已包含在单价内。\n7.其余做法：满足设计及现行施工技术、质量验收规范要求","t",{"v":10,"d":"10.00"},{"v":1500,"d":"1500.00"},{"v":15000,"d":"15000.00"},null,null,"钢筋甲供"]
[12,"现浇构件钢筋HRB400E直径 ≥φ10制作、安装","1.钢筋种类、规格：螺纹钢HRB400E ，钢筋直径≥Φ10 钢筋甲供\n2.钢筋连接方式：各种连接方式投标人综合考虑在报价中\n3.弧形构件钢筋以及桩钢筋笼的吊装费用，由投标人综合考虑，进入综合单价中\n4.投标人综合考虑埋设的方式，以及钢筋笼吊装等费用均包括在所报综合单价中不再另行计取；\n5.钢筋的复检、送检所需的材料费由投标人自行考虑在投标报价中不再另行计取；\n6.包含完成该工作所需的机械费、机械进出场费、材料场内外运输、二次或多次转运费均已包含在单价内。\n7.其余做法：满足设计及现行施工技术、质量验收规范要求","t",{"v":220,"d":"220.00"},{"v":1500,"d":"1500.00"},{"v":330000,"d":"330000.00"},null,null,"钢筋甲供"]
[13,"土石方开挖（临时道路、操作平台等）","1.土质类别：根据现场情况综合考虑\n2.开挖挖深度和方式：结合现场需要，投标人综合考虑，开挖至满足旋挖机和商混车可通行条件\n3.土石方转运：就近堆放或转运至项目经理部场内指定位置，包含在投标报价中。 \n4.做法：投标人应对施工现场及周边条件进行仔细勘察，充分考虑各种因素，满足设计及现行施工技术规范要求，综合报价。                                                                                                                                                                            5.按收方工程量结算。\n","m3",{"v":15000,"d":"15000.00"},{"v":12,"d":"12.00"},{"v":180000,"d":"180000.00"}]
[14,"旋挖机进出场费","1.旋挖机进出场费，型号投标人综合考虑\n2.此项费用按实际发生台次计算，但投标人自身原因（机械维修、更换等情况）导致的机械进出场费用不另行计算。","台/次",{"v":3,"d":"3.00"},{"v":20000,"d":"20000.00"},{"v":60000,"d":"60000.00"}]
[15,"合计：",null," "," "," ",{"$f":"SUM(G4:G17)","v":1820020}]
["注：1、全费用综合单价，包括人工费、材料费、机械费、水电费、管理费、利润、除文明施工费外的总价措施费、除旋挖机外的大型机械进出场费、甲供材料场内二次/多次转运费，降排水费、规费、销项增值税和附加税、弃土费等费用；以上工程量均为暂估量，结算工程量以现场收方为准，因为量差发生的合同价格调整，合同单价均不予以调整。\n2、现场安全环保文明施工管理要求：（1）由公司统一发放印有“兴绿园林”字样和LOGO的安全帽和反光背心，班组按实名制领取，使用完后交回项目部，否则按采购费用扣款，其余参照合同附件中安全环保管理协议执行。（2）现场雾炮机由甲方提供，投标单位需安排人员管理使用，人工费、油费及管理费用综合考虑到投标报价中，不单独计取。（3）防尘网由甲方提供，投标单位安排人员进行覆盖、回收、现场转移等，人工费综合考虑到投标报价中，不单独计取。                                                                                                                                                                                                                             3、甲供钢筋下车由投标人负责，项目部已有土建钢筋料场，但钢筋加工棚需投标人与土建班组协调使用，费用综合考虑到投标报价中。                                                                                                          4、施工中用电由投标人采用发电机发电，甲方不提供用水接口，所用临时配电箱、用电线路、开关箱、机具等所有材料、设备及安装费用含在综合单价中。                                                                                                                                                   "]

{"sheet":"2024年“A”项目","index":2,"n_rows":14,"n_cols":10,"rows_kept":14,"merged":[[0,0,0,9],[1,0,2,0],[1,1,2,1],[1,2,2,2],[1,3,2,3],[1,4,2,4],[1,5,1,8],[1,9,2,9],[12,1,12,2],[13,0,13,9]]}
["2024年“A”项目桩基工程清单及报价表"]
["序号","项目名称","项目特征","计量\r\n单位","工程量","金额（元）",{"$nulls":3},"备注"]
["","","","",null,"全费用单价限价","合价","班组所报单价","合价"]
[1,"旋挖钻机钻孔（孔径＞1000mm）","1.地层情况：土石综合考虑，嵌岩深度满足设计要求，地层情况投标人应综合考虑；现场土质变化不作单价调整；\n2.单桩长度、根数：长度结算以收方深度计算；\n3.桩截面：大于1000mm；\n4.成孔方法：旋挖钻机成孔；\n5.挖桩土石方：投标人自行踏勘现场综合考虑、废土转运至项目经理部场内指定位置；\n6.综合单价含完成该工作所需的人工，材料（含主材、辅材、周转材料），机械费（含辅助机械的进出场费），措施费（安全文明施工费、季节性施工、临时设施、夜间施工、二次搬运等）、规费等所有相关费用；投标人需配合发包人完成桩基检测（小应变、超声波、静载）、并完善相关资料；\n7.含工完料清、工人安全防护用品、防暑降温等全部内容，并包含因工期计划必须要的窝工、赶工费用。因不合格造成的二次返工费用由分包单位自行承担。\n8.做法：满足设计及相关施工规范要求。","m3",{"v":1381.9325,"d":"1381.93"},{"v":220,"d":"220.00"},{"$f":"F4*E4","v":304025.15}]
[2,"成孔灌注桩 C35水下商品混凝土","1.混凝土强度等级：C35水下商品砼，材料甲供\n2.砼现场泵送采用的机械种类及方式：长度结算以收方深度计算；\n4.混凝土计算规格：按有效桩长乘以桩径按体积计算。投标人应合理控制成控深度，超灌应满足设计及规范要求，超挖及超灌部分混凝土费用由投标人承担，结算时根据收方资料计算扣除；\n5.综合单价含完成该工作所需的人工，材料（辅材、周转材料），机械费（辅助机械的进出场费），措施费（安全文明施工费、季节性施工、临时设施、夜间施工、二次搬运等）、规费等所有相关费用；投标人需配合发包人完成桩基检测（小应变、超声波、静载）、并完善相关资料；\n6.做法：满足设计及现行施工技术、质量验收规范要求","m3",{"v":1176,"d":"1176.00"},{"v":65,"d":"65.00"},{"$f":"F5*E5","v":{"v":76440,"d":"76440.00"}},null,null,"砼甲供"]
[3,"截（凿）桩头\n（桩径＞φ1000mm）","1.截（凿）桩头截面、高度、强度等级：满足规范，投标人综合考虑 ，\n2.桩头有无钢筋：有\n3.凿除方式：投标人综合考虑\n4.包含截桩头及检测土石方开挖（土石综合考虑），桩头钢筋梳理整形，外弃土转运至项目经理部指定位置，转运距离1km范围内；\n5.做法：满足设计及现行施工技术、质量验收规范要求","个",{"v":38,"d":"38.00"},{"v":300,"d":"300.00"},{"v":11400,"d":"11400.00"}]
[4,"声测管","1.材质、规格型号：材质为钢管，规格综合考虑\n2.包含声测管安装及检测后灌浆，压浆做法满足设计及相关规范要求\n3.做法：满足设计及现行施工技术、质量验收规范要求\n4.计算规则：该子项计算规则以长度计算","m",{"v":1861.5,"d":"1861.50"},{"v":12,"d":"12.00"},{"v":22338,"d":"22338.00"}]
[5,"钢护筒","1.地层情况：综合  \n2.护筒类型、长度：钢护筒，规格、长度、厚度等综合\n3.埋设方式：由投标人自行考虑\n4.做法：满足设计及现行施工技术、质量验收规范要求\n4.计算规则：按实际使用长度计算（孔口护筒已包含在钻孔报价内，不再计量）","m",{"$f":"38*5","v":{"v":190,"d":"190.00"}},{"v":160,"d":"160.00"},{"v":30400,"d":"30400.00"}]
[6,"现浇构件钢筋HPB300直径 φ10以内 制作、安装","1.钢筋种类、规格：钢筋HPB300直径 φ10以内 ,钢筋甲供\n2.钢筋连接方式：各种连接方式投标人综合考虑在报价中\n3.弧形构件钢筋以及桩钢筋笼的吊装费用，由投标人综合考虑，进入综合单价中\n4.投标人综合考虑埋设的方式，以及钢筋笼吊装等费用均包括在所报综合单价中不再另行计取；\n5.钢筋的复检、送检所需的材料费由投标人自行考虑在投标报价中不再另行计取；\n6.包含完成该工作所需的机械费、机械进出场费、材料场内外运输、二次或多次转运费均已包含在单价内。\n7.其余做法：满足设计及现行施工技术、质量验收规范要求","t",16.31,{"v":1200,"d":"1200.00"},{"v":19572,"d":"19572.00"},null,null,"钢筋甲供"]
[7,"现浇构件钢筋HRB400E直径 ≥φ10制作、安装","1.钢筋种类、规格：螺纹钢HRB400E ，钢筋直径≥Φ10 钢筋甲供\n2.钢筋连接方式：各种连接方式投标人综合考虑在报价中\n3.弧形构件钢筋以及桩钢筋笼的吊装费用，由投标人综合考虑，进入综合单价中\n4.投标人综合考虑埋设的方式，以及钢筋笼吊装等费用均包括在所报综合单价中不再另行计取；\n5.钢筋的复检、送检所需的材料费由投标人自行考虑在投标报价中不再另行计取；\n6.包含完成该工作所需的机械费、机械进出场费、材料场内外运输、二次或多次转运费均已包含在单价内。\n7.其余做法：满足设计及现行施工技术、质量验收规范要求","t",130.68,{"v":1200,"d":"1200.00"},{"v":156816,"d":"156816.00"},null,null,"钢筋甲供"]
[8,"旋挖机进出场费","1.旋挖机进出场费，型号投标人综合考虑\n2.此项费用按实际发生台次计算，但投标人自身原因（机械维修、更换等情况）导致的机械进出场费用不另行计算。","台/次",{"v":2,"d":"2.00"},{"v":20000,"d":"20000.00"},{"v":40000,"d":"40000.00"}]
[9,"钢筋加工棚搭设","1.钢筋棚尺寸：长12000mmx宽6000mmx高3000mm，(立柱高3m，柱距4m)。\n2.材料：甲供。\n3.钢筋加工棚做法：详附图（场地硬化由甲方负责完成后移交）。\n4.其余做法：满足设计及现行施工技术、质量验收规范要求","项",{"v":1,"d":"1.00"},{"v":4500,"d":"4500.00"},{"v":4500,"d":"4500.00"}]
[10,"合计：",null,"",null,null,{"$f":"SUM(G4:G12)","v":{"v":665491.15,"d":"665,491.15"}}]
["注：1、全费用综合单价，包括人工费、材料费、机械费、水电费、管理费、利润、除文明施工费外的总价措施费、除旋挖机外的大型机械进出场费、甲供材料场内二次/多次转运费，降排水费、规费、销项增值税和附加税、弃土费等费用；以上工程量均为暂估量，结算工程量以现场收方为准，因为量差发生的合同价格调整，合同单价均不予以调整。\n2、现场安全环保文明施工管理要求：（1）由公司统一发放印有“兴绿园林”字样和LOGO的安全帽和反光背心，班组按实名制领取，使用完后交回项目部，否则按采购费用扣款，其余参照合同附件中安全环保管理协议执行。（2）现场雾炮机由甲方提供，投标单位需安排人员管理使用，人工费、油费及管理费用综合考虑到投标报价中，不单独计取。（3）防尘网由甲方提供，投标单位安排人员进行覆盖、回收、现场转移等，人工费综合考虑到投标报价中，不单独计取。                                                                                                                                                                                                                             3、甲供钢筋下车由投标人负责，临时道路由投标人自行考虑施工，钢筋料场甲方提供，费用综合考虑到投标报价中。                                                                                                          4、施工中甲方不保证提供水电接口，投标人自行考虑，所用临时配电箱、用电线路、开关箱、机具等所有材料、设备及安装费用含在综合单价中。                                                                                                                                                   "]

{"sheet":"2023年“S”项目","index":3,"n_rows":13,"n_cols":10,"rows_kept":13,"merged":[[0,0,0,9],[1,0,2,0],[1,1,2,1],[1,2,2,2],[1,3,2,3],[1,4,2,4],[1,5,1,8],[1,9,2,9],[11,1,11,2],[12,0,12,9]]}
["2023年“S”项目桩基工程清单及报价表"]
["序号","项目名称","项目特征","计量\r\n单位","工程量","金额（元）",{"$nulls":3},"备注"]
["","","","",null,"全费用单价限价","合价","班组所报单价","合价"]
[1,"旋挖钻机钻孔（孔径≤1000mm）","1.地层情况：土石综合考虑，嵌岩深度满足设计要求，地层情况投标人应综合考虑；现场土质变化不作单价调整；\n2.单桩长度、根数：长度结算以收方深度计算；\n3.桩截面：小于等于1000mm；\n4.成孔方法：旋挖钻机成孔；\n5.挖桩土石方：投标人自行踏勘现场综合考虑、废土转运至项目经理部场内指定位置；\n6.综合单价含完成该工作所需的人工，材料（含主材、辅材、周转材料），机械费（含辅助机械的进出场费），措施费（安全文明施工费、季节性施工、临时设施、夜间施工、二次搬运等）、规费等所有相关费用；投标人需配合发包人完成桩基检测（小应变、超声波、静载）、并完善相关资料；\n7.含工完料清、工人安全防护用品、防暑降温等全部内容，并包含因工期计划必须要的窝工、赶工费用。因不合格造成的二次返工费用由分包单位自行承担。\n8.做法：满足设计及相关施工规范要求。","m",{"$f":"38*6","v":{"v":228,"d":"228.00"}},{"v":200,"d":"200.00"},{"$f":"E4*F4","v":{"v":45600,"d":"45600.00"}}]
[2,"成孔灌注桩商品混凝土C30","1.混凝土强度等级：C30商品砼，材料甲供\n2.砼现场泵送采用的机械种类及方式：投标人自行确定，泵送费用和泵送运距已综合考虑在单价中；\n4.混凝土计算规格：按有效桩长乘以桩径按体积计算。投标人应合理控制成控深度，超灌应满足设计及规范要求，超挖及超灌部分混凝土费用由投标人承担，结算时根据收方资料计算扣除；\n5.综合单价含完成该工作所需的人工，材料（辅材、周转材料），机械费（辅助机械的进出场费），措施费（安全文明施工费、季节性施工、临时设施、夜间施工、二次搬运等）、规费等所有相关费用；投标人需配合发包人完成桩基检测（小应变、超声波、静载）、并完善相关资料；\n6.做法：满足设计及现行施工技术、质量验收规范要求","m3",114.55,{"v":65,"d":"65.00"},7445.75,null,null,"砼甲供"]
[3,"截（凿）桩头\n（桩径≤φ1000mm）","1.截（凿）桩头截面、高度、强度等级：满足规范，投标人综合考虑 ，\n2.桩头有无钢筋：有\n3.凿除方式：投标人综合考虑\n4.包含截桩头及检测土石方开挖（土石综合考虑），桩头钢筋梳理整形，外弃土转运至项目经理部指定位置，转运距离1km范围内；\n5.做法：满足设计及现行施工技术、质量验收规范要求","个",{"v":38,"d":"38.00"},{"v":240,"d":"240.00"},{"v":9120,"d":"9120.00"}]
[4,"声测管","1.材质、规格型号：材质为钢管，规格综合考虑\n2.包含声测管安装及检测后灌浆，压浆做法满足设计及相关规范要求\n3.做法：满足设计及现行施工技术、质量验收规范要求\n4.计算规则：该子项计算规则以长度计算","m",{"$f":"2*6*38","v":{"v":456,"d":"456.00"}},{"v":12,"d":"12.00"},{"v":5472,"d":"5472.00"}]
[5,"钢护筒","1.地层情况：综合  \n2.护筒类型、长度：钢护筒，规格、长度、厚度等综合\n3.埋设方式：由投标人自行考虑\n4.做法：满足设计及现行施工技术、质量验收规范要求\n4.计算规则：按实际使用长度计算（孔口护筒已包含在钻孔报价内，不再计量）","m",{"v":160,"d":"160.00"},{"v":160,"d":"160.00"},{"v":25600,"d":"25600.00"}]
[6,"现浇构件钢筋HPB300直径 φ10以内 制作、安装","1.钢筋种类、规格：钢筋HPB300直径 φ10以内 ,钢筋甲供\n2.钢筋连接方式：各种连接方式投标人综合考虑在报价中\n3.弧形构件钢筋以及桩钢筋笼的吊装费用，由投标人综合考虑，进入综合单价中\n4.投标人综合考虑埋设的方式，以及钢筋笼吊装等费用均包括在所报综合单价中不再另行计取；\n5.钢筋的复检、送检所需的材料费由投标人自行考虑在投标报价中不再另行计取；\n6.包含完成该工作所需的机械费、机械进出场费、材料场内外运输、二次或多次转运费均已包含在单价内。\n7.其余做法：满足设计及现行施工技术、质量验收规范要求","t",{"$f":"1764.65/1000","v":{"v":1.76465,"d":"1.76"}},{"v":1350,"d":"1350.00"},{"v":2382.2775,"d":"2382.28"},null,null,"钢筋甲供"]
[7,"现浇构件钢筋HRB400E直径 ≥φ10制作、安装","1.钢筋种类、规格：螺纹钢HRB400E ，钢筋直径≥Φ10 钢筋甲供\n2.钢筋连接方式：各种连接方式投标人综合考虑在报价中\n3.弧形构件钢筋以及桩钢筋笼的吊装费用，由投标人综合考虑，进入综合单价中\n4.投标人综合考虑埋设的方式，以及钢筋笼吊装等费用均包括在所报综合单价中不再另行计取；\n5.钢筋的复检、送检所需的材料费由投标人自行考虑在投标报价中不再另行计取；\n6.包含完成该工作所需的机械费、机械进出场费、材料场内外运输、二次或多次转运费均已包含在单价内。\n7.其余做法：满足设计及现行施工技术、质量验收规范要求","t",{"$f":"(350.39+5182.65)/1000","v":{"v":5.53304,"d":"5.53"}},{"v":1350,"d":"1350.00"},{"v":7469.604,"d":"7469.60"},null,null,"钢筋甲供"]
[8,"旋挖机进出场费","1.旋挖机进出场费，型号投标人综合考虑\n2.此项费用按实际发生台次计算，但投标人自身原因（机械维修、更换等情况）导致的机械进出场费用不另行计算。","台/次",{"v":1,"d":"1.00"},{"v":20000,"d":"20000.00"},{"v":20000,"d":"20000.00"}]
[9,"合计：",null,"",null,null,{"$f":"SUM(G4:G11)","v":{"v":123089.6315,"d":"123,089.63"}}]
["注：1、全费用综合单价，包括人工费、材料费、机械费、水电费、管理费、利润、除文明施工费外的总价措施费、除旋挖机外的大型机械进出场费、甲供材料场内二次/多次转运费，降排水费、规费、销项增值税和附加税、弃土费等费用；以上工程量均为暂估量，结算工程量以现场收方为准，因为量差发生的合同价格调整，合同单价均不予以调整。\n2、现场安全环保文明施工管理要求：（1）由公司统一发放印有“兴绿园林”字样和LOGO的安全帽和反光背心，班组按实名制领取，使用完后交回项目部，否则按采购费用扣款，其余参照合同附件中安全环保管理协议执行。（2）现场雾炮机由甲方提供，投标单位需安排人员管理使用，人工费、油费及管理费用综合考虑到投标报价中，不单独计取。（3）防尘网由甲方提供，投标单位安排人员进行覆盖、回收、现场转移等，人工费综合考虑到投标报价中，不单独计取。                                                                                                                                                                                                                             3、甲供钢筋下车由投标人负责，临时道路由投标人自行考虑施工，甲方不提供钢筋料场及加工区，费用综合考虑到投标报价中。                                                                                                          4、施工中甲方仅提供水电接口，所用临时配电箱、用电线路、开关箱、机具等所有材料、设备及安装费用含在综合单价中。                                                                                                                                                   "]

{"sheet":"2023年“H”项目","index":4,"n_rows":13,"n_cols":10,"rows_kept":13,"merged":[[0,0,0,9],[1,0,2,0],[1,1,2,1],[1,2,2,2],[1,3,2,3],[1,4,2,4],[1,5,1,8],[1,9,2,9],[11,1,11,2],[12,0,12,9]]}
["2023年“H”项目桩基工程清单及报价表"]
["序号","项目名称","项目特征","计量\r\n单位","工程量","金额（元）",{"$nulls":3},"备注"]
["","","","",null,"全费用单价限价","合价","班组所报单价","合价"]
[1,"旋挖钻机钻孔（孔径＞1000mm）","1.地层情况：土石综合考虑，嵌岩深度满足设计要求，地层情况投标人应综合考虑；现场土质变化不作单价调整；\n2.单桩长度、根数：长度结算以收方深度计算；\n3.桩截面：大于1000mm；\n4.成孔方法：旋挖钻机成孔；\n5.挖桩土石方：投标人自行踏勘现场综合考虑、废土转运至项目经理部场内指定位置；\n6.综合单价含完成该工作所需的人工，材料（含主材、辅材、周转材料），机械费（含辅助机械的进出场费），措施费（安全文明施工费、季节性施工、临时设施、夜间施工、二次搬运等）、规费等所有相关费用；投标人需配合发包人完成桩基检测（小应变、超声波、静载）、并完善相关资料；\n7.含工完料清、工人安全防护用品、防暑降温等全部内容，并包含因工期计划必须要的窝工、赶工费用。因不合格造成的二次返工费用由分包单位自行承担。\n8.做法：满足设计及相关施工规范要求。","m3",{"v":178,"d":"178.00"},{"v":220,"d":"220.00"},{"$f":"F4*E4","v":{"v":39160,"d":"39160.00"}}]
[2,"成孔灌注桩 C35水下商品混凝土","1.混凝土强度等级：C35水下商品砼，材料甲供\n2.砼现场泵送采用的机械种类及方式：投标人自行确定，泵送费用和泵送运距已综合考虑在单价中；\n4.混凝土计算规格：按有效桩长乘以桩径按体积计算。投标人应合理控制成控深度，超灌应满足设计及规范要求，超挖及超灌部分混凝土费用由投标人承担，结算时根据收方资料计算扣除；\n5.综合单价含完成该工作所需的人工，材料（辅材、周转材料），机械费（辅助机械的进出场费），措施费（安全文明施工费、季节性施工、临时设施、夜间施工、二次搬运等）、规费等所有相关费用；投标人需配合发包人完成桩基检测（小应变、超声波、静载）、并完善相关资料；\n6.做法：满足设计及现行施工技术、质量验收规范要求","m3",{"v":178,"d":"178.00"},{"v":65,"d":"65.00"},{"$f":"F5*E5","v":{"v":11570,"d":"11570.00"}},null,null,"砼甲供"]
[3,"截（凿）桩头\n（桩径＞φ1000mm）","1.截（凿）桩头截面、高度、强度等级：满足规范，投标人综合考虑 ，\n2.桩头有无钢筋：有\n3.凿除方式：投标人综合考虑\n4.包含截桩头及检测土石方开挖（土石综合考虑），桩头钢筋梳理整形，外弃土转运至项目经理部指定位置，转运距离1km范围内；\n5.做法：满足设计及现行施工技术、质量验收规范要求","个",{"v":10,"d":"10.00"},{"v":300,"d":"300.00"},{"v":3000,"d":"3000.00"}]
[4,"声测管","1.材质、规格型号：材质为钢管，规格综合考虑\n2.包含声测管安装及检测后灌浆，压浆做法满足设计及相关规范要求\n3.做法：满足设计及现行施工技术、质量验收规范要求\n4.计算规则：该子项计算规则以长度计算","m",453,{"v":12,"d":"12.00"},{"v":5436,"d":"5436.00"}]
[5,"钢护筒","1.地层情况：综合  \n2.护筒类型、长度：钢护筒，规格、长度、厚度等综合\n3.埋设方式：由投标人自行考虑\n4.做法：满足设计及现行施工技术、质量验收规范要求\n4.计算规则：按实际使用长度计算（孔口护筒已包含在钻孔报价内，不再计量）","m",{"v":2,"d":"2.000"},{"v":160,"d":"160.00"},{"v":320,"d":"320.00"}]
[6,"现浇构件钢筋HPB300直径 φ10以内 制作、安装","1.钢筋种类、规格：钢筋HPB300直径 φ10以内 ,钢筋甲供\n2.钢筋连接方式：各种连接方式投标人综合考虑在报价中\n3.弧形构件钢筋以及桩钢筋笼的吊装费用，由投标人综合考虑，进入综合单价中\n4.投标人综合考虑埋设的方式，以及钢筋笼吊装等费用均包括在所报综合单价中不再另行计取；\n5.钢筋的复检、送检所需的材料费由投标人自行考虑在投标报价中不再另行计取；\n6.包含完成该工作所需的机械费、机械进出场费、材料场内外运输、二次或多次转运费均已包含在单价内。\n7.其余做法：满足设计及现行施工技术、质量验收规范要求","t",{"v":20.8768,"d":"20.877"},{"v":1200,"d":"1200.00"},25052.16,null,null,"钢筋甲供"]
[7,"现浇构件钢筋HRB400E直径 ≥φ10制作、安装","1.钢筋种类、规格：螺纹钢HRB400E ，钢筋直径≥Φ10 钢筋甲供\n2.钢筋连接方式：各种连接方式投标人综合考虑在报价中\n3.弧形构件钢筋以及桩钢筋笼的吊装费用，由投标人综合考虑，进入综合单价中\n4.投标人综合考虑埋设的方式，以及钢筋笼吊装等费用均包括在所报综合单价中不再另行计取；\n5.钢筋的复检、送检所需的材料费由投标人自行考虑在投标报价中不再另行计取；\n6.包含完成该工作所需的机械费、机械进出场费、材料场内外运输、二次或多次转运费均已包含在单价内。\n7.其余做法：满足设计及现行施工技术、质量验收规范要求","t",{"v":2,"d":"2.000"},{"v":1200,"d":"1200.00"},{"v":2400,"d":"2400.00"},null,null,"钢筋甲供"]
[8,"旋挖机进出场费","1.旋挖机进出场费，型号投标人综合考虑\n2.此项费用按实际发生台次计算，但投标人自身原因（机械维修、更换等情况）导致的机械进出场费用不另行计算。","台/次",{"v":1,"d":"1.000"},{"v":20000,"d":"20000.00"},{"v":20000,"d":"20000.00"}]
[9,"合计：",{"$nulls":4},{"$f":"SUM(G4:G11)","v":{"v":106938.16,"d":"106,938.16"}}]
["注：1、全费用综合单价，包括人工费、材料费、机械费、水电费、管理费、利润、除文明施工费外的总价措施费、除旋挖机外的大型机械进出场费、甲供材料场内二次/多次转运费，降排水费、规费、销项增值税和附加税、弃土费等费用；以上工程量均为暂估量，结算工程量以现场收方为准，因为量差发生的合同价格调整，合同单价均不予以调整。\n2、现场安全环保文明施工管理要求：（1）由公司统一发放印有“兴绿园林”字样和LOGO的安全帽和反光背心，班组按实名制领取，使用完后交回项目部，否则按采购费用扣款，其余参照合同附件中安全环保管理协议执行。（2）现场雾炮机由甲方提供，投标单位需安排人员管理使用，人工费、油费及管理费用综合考虑到投标报价中，不单独计取。（3）防尘网由甲方提供，投标单位安排人员进行覆盖、回收、现场转移等，人工费综合考虑到投标报价中，不单独计取。                                                                                                                                                                                                                             3、甲供钢筋下车由投标人负责，甲方提供钢筋料场及加工区。    \n4、施工中甲方仅提供水电接口，所用临时配电箱、用电线路、开关箱、机具等所有材料、设备及安装费用含在综合单价中。                                                                                                                                                                                                                                                      "]